fUSD/lending_fUSD_20250113
["ID","MTS","AMOUNT","RATE_DAILY","PERIOD"]
[348766625,1736776254853,-1140.67258345,0.00011368,3]
[348766626,1736776254863,-500.0,0.00011368,2]
[348766627,1736776254872,-500.0,0.00011368,2]
[348766628,1736776254881,-500.0,0.00011368,2]
[348766629,1736776254890,-500.0,0.00011368,2]
[348766630,1736776254900,-500.0,0.00011368,2]
[348766631,1736776254909,-500.0,0.00011368,2]
[348766632,1736776254920,-1116.54,0.00011369,2]
[348766633,1736776254929,-1473.48,0.00011369,2]
[348766634,1736776254938,-1006.4,0.00011369,2]
[348766635,1736776254948,-773.79,0.00011369,2]
[348766636,1736776254958,-501.46233168,0.00011421,2]
[348766637,1736776254967,-687.73825975,0.00011421,2]
[348766638,1736776254976,-1069.82645226,0.00011433,2]
[348766639,1736776254985,-1200.0,0.00011506,2]
[348766640,1736776254995,-1200.0,0.00011506,2]
[348766641,1736776255004,-1200.0,0.00011506,2]
[348766642,1736776255014,-900.0,0.00011506,2]
[348766643,1736776255024,-2000.0,0.00011507,2]
[348766644,1736776255033,-2000.0,0.00011507,2]
[348766645,1736776255044,-2000.0,0.00011507,2]
[348766646,1736776255054,-2000.0,0.00011507,2]
[348766647,1736776255063,-2000.0,0.00011507,2]
[348766648,1736776255072,-2000.0,0.00011507,2]
[348766649,1736776255082,-2000.0,0.00011507,2]
[348766650,1736776255091,-2000.0,0.00011507,2]
[348766651,1736776255101,-2000.0,0.00011507,2]
[348766652,1736776255114,-2000.0,0.00011507,2]
[348766653,1736776255125,-2000.0,0.00011507,2]
[348766654,1736776255135,-2000.0,0.00011507,2]
[348766655,1736776255144,-2000.0,0.00011507,2]
[348766656,1736776255154,-2000.0,0.00011507,2]
[348766657,1736776255164,-2000.0,0.00011507,2]
[348766658,1736776255174,-2000.0,0.00011507,2]
[348766659,1736776255183,-2000.0,0.00011507,2]
[348766660,1736776255193,-2000.0,0.00011507,2]
[348766661,1736776255203,-2000.0,0.00011507,2]
[348766662,1736776255213,-2000.0,0.00011507,2]
[348766663,1736776255223,-2000.0,0.00011507,2]
[348766664,1736776255232,-2000.0,0.00011507,2]
[348766665,1736776255241,-2000.0,0.00011507,2]
[348766666,1736776255251,-2000.0,0.00011507,2]
[348766667,1736776255260,-2000.0,0.00011507,2]
[348766668,1736776255270,-2000.0,0.00011507,2]
[348766669,1736776255279,-2000.0,0.00011507,2]
[348766670,1736776255289,-2000.0,0.00011507,2]
[348766671,1736776255299,-2000.0,0.00011507,2]
[348766672,1736776255309,-2000.0,0.00011507,2]
[348766673,1736776255318,-2000.0,0.00011507,2]
[348766674,1736776255328,-2000.0,0.00011507,2]
[348766675,1736776255338,-2000.0,0.00011507,2]
[348766676,1736776255347,-2000.0,0.00011507,2]
[348766677,1736776255356,-2000.0,0.00011507,2]
[348766678,1736776255366,-2000.0,0.00011507,2]
[348766679,1736776255375,-2000.0,0.00011507,2]
[348766680,1736776255384,-2751.0,0.00011507,2]
[348766681,1736776255394,-2000.0,0.00011507,2]
[348766682,1736776255403,-2000.0,0.00011507,2]
[348766683,1736776255412,-2000.0,0.00011507,2]
[348766684,1736776255421,-2000.0,0.00011507,2]
[348766685,1736776255430,-2000.0,0.00011507,2]
[348766686,1736776255439,-2000.0,0.00011507,2]
[348766687,1736776255453,-2000.0,0.00011507,2]
[348766688,1736776255462,-2000.0,0.00011507,2]
[348766689,1736776255472,-1644.0,0.00011507,2]
[348766690,1736776255481,-687.73825975,0.00011534,2]
[348766691,1736776255491,-1936.63,0.00011539,2]
[348766692,1736776255502,-1858.87,0.00011539,2]
[348766693,1736776255511,-500.0,0.00011539,2]
[348766694,1736776255521,-705.48,0.00011638,2]
[348766695,1736776255531,-500.0,0.00011638,2]
[348766696,1736776255541,-685.75,0.00011638,2]
[348766697,1736776255551,-1003.43,0.00011639,2]
[348766698,1736776255561,-500.0,0.00011639,2]
[348766699,1736776255571,-1565.28,0.00011639,2]
[348766700,1736776255580,-500.0,0.00011639,2]
[348766701,1736776255590,-473.85043499,0.00011639,2]
[348766702,1736776255600,-500.0,0.00011639,2]
[348766703,1736776255610,-1938.55,0.00011639,2]
[348766704,1736776255619,-614.34,0.00011639,2]
[348766705,1736776255629,-652.92,0.00011639,2]
[348766706,1736776255638,-893.86,0.00011639,2]
[348766707,1736776255649,-902.95,0.00011639,2]
[348766708,1736776255661,-596.76,0.00011639,2]
[348766709,1736776255670,-1883.33,0.00011639,2]
[348766710,1736776255680,-1014.93,0.00011639,2]
[348766711,1736776255689,-1197.82,0.00011639,2]
[348766712,1736776255699,-1917.84,0.00011639,2]
[348766713,1736776255708,-1454.9,0.00011639,2]
[348766714,1736776255718,-2653.24,0.00011639,2]
[348766715,1736776255727,-934.46,0.00011639,2]
[348766716,1736776255736,-500.0,0.00011639,2]
[348766717,1736776255746,-835.85,0.00011639,2]
[348766718,1736776255755,-500.0,0.00011639,2]
[348766719,1736776255765,-903.99,0.00011639,2]
[348766720,1736776255775,-703.43,0.00011639,2]
[348766721,1736776255784,-946.03,0.00011639,2]
[348766722,1736776255794,-1295.35,0.00011639,2]
[348766723,1736776255803,-575.35,0.00011639,2]
[348766724,1736776255814,-544.9,0.00011639,2]
[348766725,1736776255825,-1654.45,0.00011639,2]
[348766726,1736776255834,-1221.37,0.00011639,2]
[348766727,1736776255844,-500.0,0.00011639,2]
[348766728,1736776255854,-1929.43,0.00011639,2]
[348766729,1736776255863,-1057.32,0.00011639,2]
[348766730,1736776255873,-500.0,0.00011639,2]
[348766731,1736776255882,-735.37,0.00011639,2]
[348766732,1736776255892,-1529.81,0.00011639,2]
[348766733,1736776255901,-918.13,0.00011639,2]
[348766734,1736776255911,-993.5,0.00011639,2]
[348766735,1736776255921,-500.0,0.00011639,2]
[348766736,1736776255931,-701.63,0.00011639,2]
[348766737,1736776255940,-500.0,0.00011639,2]
[348766738,1736776255949,-1208.05,0.00011639,2]
[348766739,1736776255959,-500.0,0.00011639,2]
[348766740,1736776255968,-1040.14,0.00011639,2]
[348766741,1736776255978,-654.85,0.00011639,2]
[348766742,1736776255988,-876.4,0.00011639,2]
[348766743,1736776255998,-500.0,0.00011639,2]
[348766744,1736776256007,-543.55,0.00011639,2]
[348766745,1736776256018,-1479.01,0.00011639,2]
[348766746,1736776256027,-500.0,0.00011639,2]
[348766747,1736776256036,-1079.21,0.00011639,2]
[348766748,1736776256047,-500.0,0.0001164,2]
[348766749,1736776256056,-500.0,0.0001164,2]
[348766750,1736776256065,-500.0,0.0001164,2]
[348766751,1736776256075,-500.0,0.0001164,2]
[348766752,1736776256085,-500.0,0.0001164,2]
[348766753,1736776256094,-500.0,0.0001164,2]
[348766754,1736776256105,-500.0,0.0001164,2]
[348766755,1736776256115,-500.0,0.0001164,2]
[348766756,1736776256125,-500.0,0.0001164,2]
[348766757,1736776256134,-500.0,0.0001164,2]
[348766758,1736776256145,-500.0,0.0001164,2]
[348766759,1736776256154,-500.0,0.0001164,2]
[348766760,1736776256164,-500.0,0.0001164,2]
[348766761,1736776256173,-500.0,0.0001164,2]
[348766762,1736776256185,-500.0,0.0001164,2]
[348766763,1736776256195,-718.94,0.0001164,2]
[348766764,1736776256205,-500.0,0.0001164,2]
[348766765,1736776256215,-3474.46,0.0001164,2]
[348766766,1736776256225,-500.0,0.0001164,2]
[348766767,1736776256234,-886.08,0.0001164,2]
[348766768,1736776256244,-500.0,0.0001164,2]
[348766769,1736776256253,-896.88,0.0001164,2]
[348766770,1736776256263,-1512.56,0.0001164,2]
[348766771,1736776256272,-207.86,0.0001164,2]
[348766772,1736776256282,-500.0,0.0001164,2]
[348766773,1736776256291,-1258.56,0.0001164,2]
[348766774,1736776256302,-2572.0,0.0001164,2]
[348766775,1736776256311,-500.0,0.0001164,2]
[348766776,1736776256322,-761.07,0.0001164,2]
[348766777,1736776256331,-1619.16,0.0001164,2]
[348766778,1736776256341,-500.0,0.0001164,2]
[348766779,1736776256351,-500.0,0.0001164,2]
[348766780,1736776256361,-1219.72,0.0001164,2]
[348766781,1736776256370,-4519.27,0.0001164,2]
[348766782,1736776256380,-882.41,0.0001164,2]
[348766783,1736776256389,-1086.13,0.0001164,2]
[348766784,1736776256399,-542.09,0.0001164,2]
[348766785,1736776256409,-500.0,0.0001164,2]
[348766786,1736776256419,-2653.16,0.0001164,2]
[348766787,1736776256428,-500.0,0.00011641,2]
[348766788,1736776256501,-500.0,0.00011641,2]
[348766789,1736776256511,-446.64701829,0.00011641,2]
[348766790,1736776256520,-500.0,0.00011641,2]
[348766791,1736776256528,-500.0,0.00011641,2]
[348766792,1736776256537,-500.0,0.00011641,2]
[348766793,1736776256549,-500.0,0.00011641,2]
[348766794,1736776256558,-500.0,0.00011641,2]
[348766795,1736776256567,-533.11,0.00011641,2]
[348766796,1736776256576,-500.0,0.00011641,2]
[348766797,1736776256585,-500.0,0.00011641,2]
[348766798,1736776256594,-575.22,0.00011641,2]
[348766799,1736776256603,-500.0,0.00011641,2]
[348766800,1736776256612,-500.0,0.00011641,2]
[348766801,1736776256621,-500.0,0.00011641,2]
[348766802,1736776256630,-500.0,0.00011641,2]
[348766803,1736776256639,-631.75,0.00011641,2]
[348766804,1736776256649,-500.0,0.00011641,2]
[348766805,1736776256658,-500.0,0.00011641,2]
[348766806,1736776256667,-544.1,0.00011641,2]
[348766807,1736776256676,-500.0,0.00011641,2]
[348766808,1736776256686,-500.0,0.00011641,2]
[348766809,1736776256695,-527.28,0.00011641,2]
[348766810,1736776256704,-500.0,0.00011641,2]
[348766811,1736776256714,-500.0,0.00011641,2]
[348766812,1736776256723,-500.0,0.00011641,2]
[348766813,1736776256733,-500.0,0.00011641,2]
[348766814,1736776256742,-613.61,0.00011641,2]
[348766815,1736776256751,-500.0,0.00011641,2]
[348766816,1736776256760,-500.0,0.00011641,2]
[348766817,1736776256770,-500.0,0.00011641,2]
[348766818,1736776256780,-500.0,0.00011641,2]
[348766819,1736776256789,-500.0,0.00011641,2]
[348766820,1736776256801,-525.92,0.00011641,2]
[348766821,1736776256810,-573.70783315,0.00011641,2]
[348766822,1736776256819,-500.0,0.00011641,2]
[348766823,1736776256829,-500.0,0.00011641,2]
[348766824,1736776256838,-500.0,0.00011641,2]
[348766825,1736776256847,-500.0,0.00011641,2]
[348766826,1736776256856,-581.79,0.00011641,2]
[348766827,1736776256866,-514.31,0.00011641,2]
[348766828,1736776256875,-500.0,0.00011641,2]
[348766829,1736776256884,-500.0,0.00011641,2]
[348766830,1736776256893,-500.0,0.00011641,2]
[348766831,1736776256902,-500.0,0.00011641,2]
[348766832,1736776256912,-500.0,0.00011641,2]
[348766833,1736776256921,-500.0,0.00011641,2]
[348766834,1736776256930,-500.0,0.00011641,2]
[348766835,1736776256938,-549.37,0.00011642,2]
[348766836,1736776256947,-500.0,0.00011642,2]
[348766837,1736776256957,-153.84,0.00011642,2]
[348766838,1736776256966,-500.0,0.00011642,2]
[348766839,1736776256976,-500.0,0.00011642,2]
[348766840,1736776256986,-1116.54,0.00011643,2]
[348766841,1736776256995,-1473.48,0.00011643,2]
[348766842,1736776257004,-1006.4,0.00011643,2]
[348766843,1736776257014,-773.79,0.00011643,2]
[348766844,1736776257023,-687.73825975,0.00011648,2]
[348766845,1736776257033,-1069.82645226,0.00011688,2]
[348766846,1736776257042,-8500.0,0.00011717,2]
[348766847,1736776257053,-1489.145,0.00011728,2]
[348766848,1736776257062,-179.654,0.00011728,2]
[348766849,1736776257072,-687.73825975,0.00011762,2]
[348766850,1736776257082,-200.0,0.000118,2]
[348766851,1736776257091,-1936.63,0.00011813,2]
[348766852,1736776257101,-1858.87,0.00011813,2]
[348766853,1736776257112,-500.0,0.00011813,2]
[348766854,1736776257122,-2016.0,0.00011819,2]
[348766855,1736776257131,-1268.0,0.00011819,2]
[348766856,1736776257140,-635.0,0.00011819,2]
[348766857,1736776257150,-566.0,0.00011819,2]
[348766858,1736776257160,-150.0,0.00011819,2]
[348766859,1736776257169,-1860.0,0.00011819,2]
[348766860,1736776257178,-454.595,0.00011819,2]
[348766861,1736776257188,-2944.0,0.00011819,2]
[348766862,1736776257198,-9629.0,0.00011819,2]
[348766863,1736776257207,-1174.0,0.00011819,2]
[348766864,1736776257217,-151.255,0.00011819,2]
[348766865,1736776257226,-3897.0,0.00011819,2]
[348766866,1736776257236,-1104.0,0.00011819,2]
[348766867,1736776257246,-687.73825975,0.00011876,2]
[348766868,1736776257255,-5000.0,0.000119,2]
[348766869,1736776257265,-705.48,0.00011912,2]
[348766870,1736776257274,-500.0,0.00011912,2]
[348766871,1736776257284,-685.75,0.00011912,2]
[348766872,1736776257293,-500.0,0.00011913,2]
[348766873,1736776257303,-1565.28,0.00011913,2]
[348766874,1736776257313,-500.0,0.00011913,2]
[348766875,1736776257323,-500.0,0.00011913,2]
[348766876,1736776257331,-1938.55,0.00011913,2]
[348766877,1736776257341,-1140.67258346,0.00011913,3]
[348766878,1736776257350,-614.34,0.00011913,2]
[348766879,1736776257360,-652.92,0.00011913,2]
[348766880,1736776257370,-893.86,0.00011913,2]
[348766881,1736776257379,-902.95,0.00011913,2]
[348766882,1736776257389,-596.76,0.00011913,2]
[348766883,1736776257398,-1883.33,0.00011913,2]
[348766884,1736776257408,-1014.93,0.00011913,2]
[348766885,1736776257417,-1197.82,0.00011913,2]
[348766886,1736776257427,-1917.84,0.00011913,2]
[348766887,1736776257436,-1454.9,0.00011913,2]
[348766888,1736776257445,-2653.24,0.00011913,2]
[348766889,1736776257455,-934.46,0.00011913,2]
[348766890,1736776257465,-500.0,0.00011913,2]
[348766891,1736776257474,-835.85,0.00011913,2]
[348766892,1736776257484,-500.0,0.00011913,2]
[348766893,1736776257494,-903.99,0.00011913,2]
[348766894,1736776257503,-703.43,0.00011913,2]
[348766895,1736776257513,-946.03,0.00011913,2]
[348766896,1736776257523,-1295.35,0.00011913,2]
[348766897,1736776257533,-575.35,0.00011913,2]
[348766898,1736776257542,-544.9,0.00011913,2]
[348766899,1736776257553,-1654.45,0.00011913,2]
[348766900,1736776257562,-1221.37,0.00011913,2]
[348766901,1736776257571,-500.0,0.00011913,2]
[348766902,1736776257579,-1929.43,0.00011913,2]
[348766903,1736776257588,-999.0,0.00011913,2]
[348766904,1736776257597,-1057.32,0.00011913,2]
[348766905,1736776257607,-500.0,0.00011913,2]
[348766906,1736776257616,-735.37,0.00011913,2]
[348766907,1736776257626,-1529.81,0.00011913,2]
[348766908,1736776257636,-918.13,0.00011913,2]
[348766909,1736776257646,-993.5,0.00011913,2]
[348766910,1736776257656,-500.0,0.00011913,2]
[348766911,1736776257665,-701.63,0.00011913,2]
[348766912,1736776257674,-500.0,0.00011913,2]
[348766913,1736776257683,-1208.05,0.00011913,2]
[348766914,1736776257693,-500.0,0.00011913,2]
[348766915,1736776257704,-1040.14,0.00011913,2]
[348766916,1736776257713,-654.85,0.00011913,2]
[348766917,1736776257723,-876.4,0.00011913,2]
[348766918,1736776257733,-500.0,0.00011913,2]
[348766919,1736776257743,-543.55,0.00011913,2]
[348766920,1736776257753,-1479.01,0.00011913,2]
[348766921,1736776257763,-500.0,0.00011913,2]
[348766922,1736776257772,-1079.21,0.00011913,2]
[348766923,1736776257782,-500.0,0.00011914,2]
[348766924,1736776257791,-500.0,0.00011914,2]
[348766925,1736776257803,-500.0,0.00011914,2]
[348766926,1736776257813,-500.0,0.00011914,2]
[348766927,1736776257823,-500.0,0.00011914,2]
[348766928,1736776257832,-500.0,0.00011914,2]
[348766929,1736776257841,-500.0,0.00011914,2]
[348766930,1736776257850,-500.0,0.00011914,2]
[348766931,1736776257860,-500.0,0.00011914,2]
[348766932,1736776257870,-500.0,0.00011914,2]
[348766933,1736776257880,-500.0,0.00011914,2]
[348766934,1736776257889,-500.0,0.00011914,2]
[348766935,1736776257899,-500.0,0.00011914,2]
[348766936,1736776257908,-500.0,0.00011914,2]
[348766937,1736776257918,-292.17,0.00011914,2]
[348766938,1736776257928,-718.94,0.00011914,2]
[348766939,1736776257937,-500.0,0.00011914,2]
[348766940,1736776257947,-3474.46,0.00011914,2]
[348766941,1736776257957,-500.0,0.00011914,2]
[348766942,1736776257967,-886.08,0.00011914,2]
[348766943,1736776257977,-500.0,0.00011914,2]
[348766944,1736776257987,-896.88,0.00011914,2]
[348766945,1736776257996,-1512.56,0.00011914,2]
[348766946,1736776258005,-504.87847471,0.00011914,2]
[348766947,1736776258015,-1258.56,0.00011914,2]
[348766948,1736776258024,-2572.0,0.00011914,2]
[348766949,1736776258034,-182.97704229,0.00011914,2]
[348766950,1736776258044,-761.07,0.00011914,2]
[348766951,1736776258055,-1619.16,0.00011914,2]
[348766952,1736776258064,-500.0,0.00011914,2]
[348766953,1736776258075,-500.0,0.00011914,2]
[348766954,1736776258085,-1219.72,0.00011914,2]
[348766955,1736776258095,-882.41,0.00011914,2]
[348766956,1736776258109,-4519.27,0.00011914,2]
[348766957,1736776258119,-1086.13,0.00011914,2]
[348766958,1736776258129,-542.09,0.00011914,2]
[348766959,1736776258139,-2653.16,0.00011914,2]
[348766960,1736776258150,-500.0,0.00011915,2]
[348766961,1736776258159,-500.0,0.00011915,2]
[348766962,1736776258169,-500.0,0.00011915,2]
[348766963,1736776258179,-500.0,0.00011915,2]
[348766964,1736776258190,-500.0,0.00011915,2]
[348766965,1736776258199,-500.0,0.00011915,2]
[348766966,1736776258209,-500.0,0.00011915,2]
[348766967,1736776258219,-533.11,0.00011915,2]
[348766968,1736776258228,-500.0,0.00011915,2]
[348766969,1736776258237,-500.0,0.00011915,2]
[348766970,1736776258247,-575.22,0.00011915,2]
[348766971,1736776258257,-500.0,0.00011915,2]
[348766972,1736776258267,-500.0,0.00011915,2]
[348766973,1736776258277,-500.0,0.00011915,2]
[348766974,1736776258287,-500.0,0.00011915,2]
[348766975,1736776258297,-631.75,0.00011915,2]
[348766976,1736776258307,-500.0,0.00011915,2]
[348766977,1736776258316,-500.0,0.00011915,2]
[348766978,1736776258326,-544.1,0.00011915,2]
[348766979,1736776258336,-426.04,0.00011915,2]
[348766980,1736776258346,-500.0,0.00011915,2]
[348766981,1736776258360,-527.28,0.00011915,2]
[348766982,1736776258369,-500.0,0.00011915,2]
[348766983,1736776258379,-356.46102534,0.00011915,2]
[348766984,1736776258389,-500.0,0.00011915,2]
[348766985,1736776258398,-500.0,0.00011915,2]
[348766986,1736776258408,-613.61,0.00011915,2]
[348766987,1736776258418,-500.0,0.00011915,2]
[348766988,1736776258427,-500.0,0.00011915,2]
[348766989,1736776258438,-500.0,0.00011915,2]
[348766990,1736776258448,-435.17586244,0.00011915,2]
[348766991,1736776258457,-500.0,0.00011915,2]
[348766992,1736776258466,-525.92,0.00011915,2]
[348766993,1736776258479,-500.0,0.00011915,2]
[348766994,1736776258489,-500.0,0.00011915,2]
[348766995,1736776258499,-500.0,0.00011915,2]
[348766996,1736776258509,-500.0,0.00011915,2]
[348766997,1736776258519,-514.31,0.00011915,2]
[348766998,1736776258529,-500.0,0.00011915,2]
[348766999,1736776258539,-500.0,0.00011915,2]
[348767000,1736776258550,-500.0,0.00011915,2]
[348767001,1736776258560,-500.0,0.00011915,2]
[348767002,1736776258570,-327.25856631,0.00011915,2]
[348767003,1736776258579,-500.0,0.00011915,2]
[348767004,1736776258588,-500.0,0.00011915,2]
[348767005,1736776258597,-549.13838431,0.00011916,2]
[348767006,1736776258606,-500.0,0.00011916,2]
[348767007,1736776258615,-512.75,0.00011916,2]
[348767008,1736776258625,-1116.54,0.00011917,2]
[348767009,1736776258635,-1473.48,0.00011917,2]
[348767010,1736776258644,-1006.4,0.00011917,2]
[348767011,1736776258655,-773.79,0.00011917,2]
[348767012,1736776258665,-1069.82645226,0.00011944,2]
[348767013,1736776258675,-687.73825975,0.0001199,2]
[348767014,1736776258685,-5000.0,0.00012,2]
[348767015,1736776258694,-5000.0,0.00012,2]
[348767016,1736776258703,-5141.32231,0.00012,2]
[348767017,1736776258714,-876.49,0.00012,2]
[348767018,1736776258724,-200.0,0.00012055,2]
[348767019,1736776258734,-1936.63,0.00012087,2]
[348767020,1736776258746,-1858.87,0.00012087,2]
[348767021,1736776258756,-500.0,0.00012087,2]
[348767022,1736776258766,-5000.0,0.000121,2]
[348767023,1736776258776,-687.73825975,0.00012103,2]
[348767024,1736776258786,-151.88,0.00012139,2]
[348767025,1736776258795,-705.48,0.00012186,2]
[348767026,1736776258806,-236.16153613,0.00012186,2]
[348767027,1736776258817,-685.75,0.00012186,2]
[348767028,1736776258827,-500.0,0.00012187,2]
[348767029,1736776258838,-1565.28,0.00012187,2]
[348767030,1736776258848,-500.0,0.00012187,2]
[348767031,1736776258858,-500.0,0.00012187,2]
[348767032,1736776258868,-1938.55,0.00012187,2]
[348767033,1736776258878,-614.34,0.00012187,2]
[348767034,1736776258888,-652.92,0.00012187,2]
[348767035,1736776258898,-893.86,0.00012187,2]
[348767036,1736776258909,-902.95,0.00012187,2]
[348767037,1736776258918,-596.76,0.00012187,2]
[348767038,1736776258928,-1883.33,0.00012187,2]
[348767039,1736776258938,-1014.93,0.00012187,2]
[348767040,1736776258947,-1197.82,0.00012187,2]
[348767041,1736776258957,-1917.84,0.00012187,2]
[348767042,1736776258968,-1454.9,0.00012187,2]
[348767043,1736776258978,-2653.24,0.00012187,2]
[348767044,1736776258988,-934.46,0.00012187,2]
[348767045,1736776258998,-500.0,0.00012187,2]
[348767046,1736776259008,-835.85,0.00012187,2]
[348767047,1736776259017,-500.0,0.00012187,2]
[348767048,1736776259028,-903.99,0.00012187,2]
[348767049,1736776259038,-703.43,0.00012187,2]
[348767050,1736776259047,-946.03,0.00012187,2]
[348767051,1736776259058,-1295.35,0.00012187,2]
[348767052,1736776259068,-575.35,0.00012187,2]
[348767053,1736776259077,-1654.45,0.00012187,2]
[348767054,1736776259087,-544.9,0.00012187,2]
[348767055,1736776259097,-1221.37,0.00012187,2]
[348767056,1736776259108,-500.0,0.00012187,2]
[348767057,1736776259120,-1929.43,0.00012187,2]
[348767058,1736776259130,-1057.32,0.00012187,2]
[348767059,1736776259140,-500.0,0.00012187,2]
[348767060,1736776259151,-735.37,0.00012187,2]
[348767061,1736776259162,-1529.81,0.00012187,2]
[348767062,1736776259172,-918.13,0.00012187,2]
[348767063,1736776259182,-993.5,0.00012187,2]
[348767064,1736776259193,-500.0,0.00012187,2]
[348767065,1736776259202,-701.63,0.00012187,2]
[348767066,1736776259212,-316.51,0.00012187,2]
[348767067,1736776259222,-1208.05,0.00012187,2]
[348767068,1736776259233,-500.0,0.00012187,2]
[348767069,1736776259244,-1040.14,0.00012187,2]
[348767070,1736776259254,-654.85,0.00012187,2]
[348767071,1736776259264,-876.4,0.00012187,2]
[348767072,1736776259274,-500.0,0.00012187,2]
[348767073,1736776259283,-543.55,0.00012187,2]
[348767074,1736776259293,-1479.01,0.00012187,2]
[348767075,1736776259305,-500.0,0.00012187,2]
[348767076,1736776259315,-500.0,0.00012188,2]
[348767077,1736776259325,-500.0,0.00012188,2]
[348767078,1736776259335,-500.0,0.00012188,2]
[348767079,1736776259345,-500.0,0.00012188,2]
[348767080,1736776259354,-500.0,0.00012188,2]
[348767081,1736776259365,-500.0,0.00012188,2]
[348767082,1736776259376,-500.0,0.00012188,2]
[348767083,1736776259385,-500.0,0.00012188,2]
[348767084,1736776259395,-500.0,0.00012188,2]
[348767085,1736776259404,-500.0,0.00012188,2]
[348767086,1736776259414,-500.0,0.00012188,2]
[348767087,1736776259423,-500.0,0.00012188,2]
[348767088,1736776259432,-500.0,0.00012188,2]
[348767089,1736776259442,-500.0,0.00012188,2]
[348767090,1736776259452,-718.94,0.00012188,2]
[348767091,1736776259462,-500.0,0.00012188,2]
[348767092,1736776259472,-3474.46,0.00012188,2]
[348767093,1736776259481,-521.03239683,0.00012188,2]
[348767094,1736776259491,-886.08,0.00012188,2]
[348767095,1736776259501,-500.0,0.00012188,2]
[348767096,1736776259511,-896.88,0.00012188,2]
[348767097,1736776259522,-1512.56,0.00012188,2]
[348767098,1736776259531,-1258.56,0.00012188,2]
[348767099,1736776259541,-2572.0,0.00012188,2]
[348767100,1736776259553,-761.07,0.00012188,2]
[348767101,1736776259564,-1619.16,0.00012188,2]
[348767102,1736776259574,-500.0,0.00012188,2]
[348767103,1736776259584,-500.0,0.00012188,2]
[348767104,1736776259594,-1219.72,0.00012188,2]
[348767105,1736776259604,-882.41,0.00012188,2]
[348767106,1736776259613,-4519.27,0.00012188,2]
[348767107,1736776259623,-1086.13,0.00012188,2]
[348767108,1736776259633,-542.09,0.00012188,2]
[348767109,1736776259644,-2653.16,0.00012188,2]
[348767110,1736776259654,-500.0,0.00012189,2]
[348767111,1736776259664,-500.0,0.00012189,2]
[348767112,1736776259674,-500.0,0.00012189,2]
[348767113,1736776259684,-500.0,0.00012189,2]
[348767114,1736776259694,-500.0,0.00012189,2]
[348767115,1736776259704,-500.0,0.00012189,2]
[348767116,1736776259714,-500.0,0.00012189,2]
[348767117,1736776259724,-533.11,0.00012189,2]
[348767118,1736776259734,-500.0,0.00012189,2]
[348767119,1736776259746,-500.0,0.00012189,2]
[348767120,1736776259757,-575.22,0.00012189,2]
[348767121,1736776259767,-500.0,0.00012189,2]
[348767122,1736776259777,-500.0,0.00012189,2]
[348767123,1736776259787,-500.0,0.00012189,2]
[348767124,1736776259797,-500.0,0.00012189,2]